[Event "Titled Tuesday Blitz May 30 Early 2023"]
[White "Srebrnic, Marko"]
[Black "Seo, Jung Min"]
[WhiteFideId "14603616"]
[BlackFideId "1734687"]
[WhiteElo "2341"]
[BlackElo "2468"]
[Result "0-1"]
[Round "01"]
[TimeControl "180+2"]
[Date "2023.05.30"]
[WhiteClock "0:00:00"]
[BlackClock "0:00:04"]

1. e4 {[%clk 0:02:59]}  c5 {[%clk 0:02:58]} 2. Nf3 {[%clk 0:02:54]}  d6 {[%clk 0:02:58]} 3. g3 {[%clk 0:02:52]}  Nf6 {[%clk 0:02:58]} 4. Qe2 {[%clk 0:02:52]}  g6 {[%clk 0:02:57]} 5. Bg2 {[%clk 0:02:51]}  Bg7 {[%clk 0:02:57]} 6. O-O {[%clk 0:02:52]}  O-O {[%clk 0:02:57]} 7. c3 {[%clk 0:02:51]}  Nc6 {[%clk 0:02:57]} 8. Na3 {[%clk 0:02:50]}  Rb8 {[%clk 0:02:55]} 9. Nc2 {[%clk 0:02:50]}  e5 {[%clk 0:02:51]} 10. h3 {[%clk 0:02:41]}  b5 {[%clk 0:02:50]} 11. d4 {[%clk 0:02:41]}  Qb6 {[%clk 0:02:46]} 12. dxe5 {[%clk 0:02:30]}  dxe5 {[%clk 0:02:46]} 13. a4 {[%clk 0:02:24]}  Ba6 {[%clk 0:02:42]} 14. a5 {[%clk 0:02:16]}  Qb7 {[%clk 0:02:36]} 15. b4 {[%clk 0:02:04]}  cxb4 {[%clk 0:02:28]} 16. cxb4 {[%clk 0:02:03]}  Qc7 {[%clk 0:02:28]} 17. Bb2 {[%clk 0:01:45]}  Bc8 {[%clk 0:02:26]} 18. Rac1 {[%clk 0:01:39]}  Be6 {[%clk 0:02:25]} 19. Ne3 {[%clk 0:01:38]}  Qb7 {[%clk 0:02:10]} 20. Nxe5 {[%clk 0:01:35]}  Nxb4 {[%clk 0:02:07]} 21. Ba3 {[%clk 0:01:25]}  Na2 {[%clk 0:02:07]} 22. Bxf8 {[%clk 0:00:51]}  Nxc1 {[%clk 0:02:05]} 23. Rxc1 {[%clk 0:00:52]}  Rxf8 {[%clk 0:02:04]} 24. Nc6 {[%clk 0:00:44]}  Nd7 {[%clk 0:01:30]} 25. e5 {[%clk 0:00:42]}  Qa6 {[%clk 0:01:26]} 26. f4 {[%clk 0:00:30]}  Nb8 {[%clk 0:01:20]} 27. Qd2 {[%clk 0:00:27]}  b4 {[%clk 0:00:58]} 28. Qxb4 {[%clk 0:00:20]}  Nxc6 {[%clk 0:00:58]} 29. Rxc6 {[%clk 0:00:20]}  Qe2 {[%clk 0:00:56]} 30. Qc3 {[%clk 0:00:18]}  Rd8 {[%clk 0:00:52]} 31. Nf1 {[%clk 0:00:09]}  h5 {[%clk 0:00:45]} 32. Qe3 {[%clk 0:00:09]}  Qa2 {[%clk 0:00:42]} 33. Qxa7 {[%clk 0:00:08]}  Bf8 {[%clk 0:00:36]} 34. Qf2 {[%clk 0:00:07]}  Qxa5 {[%clk 0:00:35]} 35. Rc2 {[%clk 0:00:06]}  Bf5 {[%clk 0:00:34]} 36. Rc1 {[%clk 0:00:03]}  Rd3 {[%clk 0:00:31]} 37. Kh1 {[%clk 0:00:03]}  Kg7 {[%clk 0:00:30]} 38. Ne3 {[%clk 0:00:03]}  Bd7 {[%clk 0:00:25]} 39. f5 {[%clk 0:00:03]}  Qxe5 {[%clk 0:00:23]} 40. Nc4 {[%clk 0:00:04]}  Qxg3 {[%clk 0:00:20]} 41. Qxg3 {[%clk 0:00:04]}  Rxg3 {[%clk 0:00:21]} 42. fxg6 {[%clk 0:00:04]}  fxg6 {[%clk 0:00:20]} 43. Ne5 {[%clk 0:00:05]}  Bf5 {[%clk 0:00:19]} 44. Rc7+ {[%clk 0:00:05]}  Kf6 {[%clk 0:00:18]} 45. Nf3 {[%clk 0:00:05]}  Bxh3 {[%clk 0:00:14]} 46. Bxh3 {[%clk 0:00:04]}  Rxf3 {[%clk 0:00:14]} 47. Kg2 {[%clk 0:00:04]}  Ra3 {[%clk 0:00:14]} 48. Rc6+ {[%clk 0:00:05]}  Kg7 {[%clk 0:00:14]} 49. Rc2 {[%clk 0:00:06]}  Be7 {[%clk 0:00:13]} 50. Bc8 {[%clk 0:00:07]}  g5 {[%clk 0:00:11]} 51. Rc6 {[%clk 0:00:08]}  g4 {[%clk 0:00:11]} 52. Bf5 {[%clk 0:00:08]}  h4 {[%clk 0:00:10]} 53. Rg6+ {[%clk 0:00:08]}  Kf7 {[%clk 0:00:11]} 54. Rxg4 {[%clk 0:00:09]}  Kf6 {[%clk 0:00:10]} 55. Be4 {[%clk 0:00:09]}  Ke5 {[%clk 0:00:10]} 56. Bf3 {[%clk 0:00:08]}  h3+ {[%clk 0:00:08]} 57. Kg3 {[%clk 0:00:08]}  h2 {[%clk 0:00:08]} 58. Re4+ {[%clk 0:00:08]}  Kd6 {[%clk 0:00:07]} 59. Rd4+ {[%clk 0:00:08]}  Ke6 {[%clk 0:00:05]} 60. Re4+ {[%clk 0:00:08]}  Kf7 {[%clk 0:00:03]} 61. Rf4+ {[%clk 0:00:00]}  Ke8 {[%clk 0:00:04]} 0-1


[Site "https://www.chess.com"]

[Event "Titled Tuesday Blitz May 30 Early 2023"]
[White "Samunenkov, Ihor"]
[Black "Mackster23"]
[WhiteFideId "14187086"]
[WhiteElo "2457"]
[BlackElo "2419"]
[Result "0-1"]
[Round "01"]
[TimeControl "180+2"]
[Date "2023.05.30"]
[WhiteClock "0:00:01"]
[BlackClock "0:00:07"]

1. e4 {[%clk 0:02:59]}  c5 {[%clk 0:02:59]} 2. Nf3 {[%clk 0:02:59]}  d6 {[%clk 0:02:59]} 3. d4 {[%clk 0:02:59]}  cxd4 {[%clk 0:03:00]} 4. Nxd4 {[%clk 0:03:00]}  Nf6 {[%clk 0:03:01]} 5. Nc3 {[%clk 0:03:01]}  a6 {[%clk 0:03:01]} 6. h3 {[%clk 0:03:01]}  e6 {[%clk 0:02:59]} 7. g4 {[%clk 0:03:01]}  Nfd7 {[%clk 0:03:00]} 8. g5 {[%clk 0:03:01]}  Be7 {[%clk 0:02:59]} 9. h4 {[%clk 0:03:01]}  b5 {[%clk 0:02:55]} 10. a3 {[%clk 0:02:59]}  Bb7 {[%clk 0:02:55]} 11. Be3 {[%clk 0:02:58]}  Nc6 {[%clk 0:02:55]} 12. Rg1 {[%clk 0:02:54]}  Rc8 {[%clk 0:02:54]} 13. f4 {[%clk 0:02:44]}  Qa5 {[%clk 0:02:35]} 14. Nb3 {[%clk 0:02:30]}  Qc7 {[%clk 0:02:34]} 15. h5 {[%clk 0:02:26]}  Nc5 {[%clk 0:02:24]} 16. Qd2 {[%clk 0:01:55]}  b4 {[%clk 0:01:34]} 17. axb4 {[%clk 0:01:52]}  Nxb4 {[%clk 0:01:33]} 18. Nxc5 {[%clk 0:01:45]}  dxc5 {[%clk 0:01:33]} 19. Bc4 {[%clk 0:01:42]}  Rd8 {[%clk 0:01:31]} 20. Qg2 {[%clk 0:01:33]}  Rd4 {[%clk 0:01:19]} 21. b3 {[%clk 0:01:15]}  Qc6 {[%clk 0:00:57]} 22. Rc1 {[%clk 0:00:30]}  Rd7 {[%clk 0:00:29]} 23. Ke2 {[%clk 0:00:25]}  Kd8 {[%clk 0:00:29]} 24. g6 {[%clk 0:00:17]}  hxg6 {[%clk 0:00:29]} 25. hxg6 {[%clk 0:00:18]}  f6 {[%clk 0:00:28]} 26. Rgd1 {[%clk 0:00:16]}  Rxd1 {[%clk 0:00:27]} 27. Rxd1+ {[%clk 0:00:16]}  Kc7 {[%clk 0:00:28]} 28. Rd2 {[%clk 0:00:11]}  f5 {[%clk 0:00:20]} 29. Kf1 {[%clk 0:00:08]}  Bf6 {[%clk 0:00:17]} 30. Na4 {[%clk 0:00:04]}  Qxe4 {[%clk 0:00:10]} 31. Qxe4 {[%clk 0:00:05]}  Bxe4 {[%clk 0:00:11]} 32. Nxc5 {[%clk 0:00:05]}  Rh1+ {[%clk 0:00:11]} 33. Bg1 {[%clk 0:00:05]}  Bxc2 {[%clk 0:00:08]} 34. Nxa6+ {[%clk 0:00:02]}  Nxa6 {[%clk 0:00:08]} 35. Rxc2 {[%clk 0:00:02]}  Nb4 {[%clk 0:00:08]} 36. Re2 {[%clk 0:00:01]}  Bd4 {[%clk 0:00:08]} 37. Rg2 {[%clk 0:00:01]}  Nc2 {[%clk 0:00:07]} 38. Bxe6 {[%clk 0:00:01]}  Ne3+ {[%clk 0:00:06]} 39. Kf2 {[%clk 0:00:01]}  Nxg2+ {[%clk 0:00:06]} 40. Kxg2 {[%clk 0:00:01]}  Rxg1+ {[%clk 0:00:07]} 0-1


[Site "https://www.chess.com"]

[Event "Titled Tuesday Blitz May 30 Early 2023"]
[White "Matinian, Nikita"]
[Black "Zenin, Dmitry"]
[WhiteFideId "24129100"]
[BlackFideId "4127897"]
[WhiteElo "2422"]
[BlackElo "2215"]
[Result "1-0"]
[Round "01"]
[TimeControl "180+2"]
[Date "2023.05.30"]
[WhiteClock "0:00:20"]
[BlackClock "0:00:21"]

1. e4 {[%clk 0:03:00]}  e5 {[%clk 0:02:58]} 2. Nf3 {[%clk 0:02:58]}  Nc6 {[%clk 0:02:58]} 3. Bb5 {[%clk 0:02:58]}  a6 {[%clk 0:02:57]} 4. Ba4 {[%clk 0:02:58]}  Nf6 {[%clk 0:02:57]} 5. O-O {[%clk 0:02:58]}  Be7 {[%clk 0:02:57]} 6. d3 {[%clk 0:02:58]}  b5 {[%clk 0:02:56]} 7. Bb3 {[%clk 0:02:58]}  d6 {[%clk 0:02:56]} 8. a3 {[%clk 0:02:58]}  O-O {[%clk 0:02:55]} 9. Nc3 {[%clk 0:02:58]}  Be6 {[%clk 0:02:51]} 10. Nd5 {[%clk 0:02:58]}  Bxd5 {[%clk 0:02:44]} 11. exd5 {[%clk 0:02:58]}  Nd4 {[%clk 0:02:45]} 12. Nxd4 {[%clk 0:02:55]}  exd4 {[%clk 0:02:44]} 13. Re1 {[%clk 0:02:51]}  Nd7 {[%clk 0:02:44]} 14. Qg4 {[%clk 0:02:48]}  Bf6 {[%clk 0:02:41]} 15. Bd2 {[%clk 0:02:40]}  Nc5 {[%clk 0:02:24]} 16. g3 {[%clk 0:02:34]}  a5 {[%clk 0:02:19]} 17. h4 {[%clk 0:02:33]}  a4 {[%clk 0:02:01]} 18. Ba2 {[%clk 0:02:33]}  Qd7 {[%clk 0:01:50]} 19. Qxd7 {[%clk 0:02:30]}  Nxd7 {[%clk 0:01:49]} 20. f4 {[%clk 0:02:27]}  h5 {[%clk 0:01:48]} 21. Kg2 {[%clk 0:02:25]}  Rfe8 {[%clk 0:01:34]} 22. Rxe8+ {[%clk 0:02:22]}  Rxe8 {[%clk 0:01:33]} 23. Re1 {[%clk 0:02:23]}  Rxe1 {[%clk 0:01:30]} 24. Bxe1 {[%clk 0:02:24]}  Nb6 {[%clk 0:01:22]} 25. Ba5 {[%clk 0:02:23]}  Kf8 {[%clk 0:01:09]} 26. Kf3 {[%clk 0:02:24]}  Ke8 {[%clk 0:01:07]} 27. Ke4 {[%clk 0:02:12]}  Kd7 {[%clk 0:01:05]} 28. Be1 {[%clk 0:01:47]}  Nc8 {[%clk 0:01:05]} 29. Bf2 {[%clk 0:01:45]}  Ne7 {[%clk 0:01:05]} 30. Be1 {[%clk 0:01:36]}  g6 {[%clk 0:01:04]} 31. c4 {[%clk 0:01:35]}  dxc3 {[%clk 0:01:02]} 32. bxc3 {[%clk 0:01:33]}  Nf5 {[%clk 0:01:00]} 33. d4 {[%clk 0:01:32]}  Kc8 {[%clk 0:00:54]} 34. Bf2 {[%clk 0:01:27]}  Kb7 {[%clk 0:00:53]} 35. c4 {[%clk 0:01:13]}  bxc4 {[%clk 0:00:51]} 36. Bxc4 {[%clk 0:01:14]}  Kb6 {[%clk 0:00:51]} 37. Be2 {[%clk 0:01:14]}  Ka5 {[%clk 0:00:40]} 38. Bd1 {[%clk 0:01:10]}  Kb5 {[%clk 0:00:39]} 39. Kd3 {[%clk 0:00:47]}  Be7 {[%clk 0:00:38]} 40. Be2 {[%clk 0:00:44]}  Bf6 {[%clk 0:00:37]} 41. Kc3+ {[%clk 0:00:44]}  Ka5 {[%clk 0:00:38]} 42. Kc4 {[%clk 0:00:44]}  Bg7 {[%clk 0:00:33]} 43. Bd3 {[%clk 0:00:35]}  Bf6 {[%clk 0:00:32]} 44. Bxf5 {[%clk 0:00:33]}  gxf5 {[%clk 0:00:31]} 45. Be1+ {[%clk 0:00:33]}  Kb6 {[%clk 0:00:31]} 46. Bc3 {[%clk 0:00:32]}  Be7 {[%clk 0:00:28]} 47. Kb4 {[%clk 0:00:31]}  c6 {[%clk 0:00:28]} 48. dxc6 {[%clk 0:00:23]}  Kxc6 {[%clk 0:00:28]} 49. Kxa4 {[%clk 0:00:24]}  d5 {[%clk 0:00:27]} 50. Bb4 {[%clk 0:00:20]}  Bd8 {[%clk 0:00:27]} 51. Bc3 {[%clk 0:00:19]}  Bb6 {[%clk 0:00:26]} 52. Kb4 {[%clk 0:00:20]}  Bc7 {[%clk 0:00:26]} 53. a4 {[%clk 0:00:20]}  Bd6+ {[%clk 0:00:26]} 54. Kb3 {[%clk 0:00:20]}  Bc7 {[%clk 0:00:26]} 55. Bb4 {[%clk 0:00:21]}  Bb6 {[%clk 0:00:25]} 56. Kc3 {[%clk 0:00:21]}  Ba7 {[%clk 0:00:24]} 57. Bc5 {[%clk 0:00:18]}  Bb8 {[%clk 0:00:23]} 58. Kb4 {[%clk 0:00:18]}  Bc7 {[%clk 0:00:23]} 59. a5 {[%clk 0:00:18]}  Bd8 {[%clk 0:00:23]} 60. a6 {[%clk 0:00:19]}  Bc7 {[%clk 0:00:23]} 61. a7 {[%clk 0:00:19]}  Kb7 {[%clk 0:00:21]} 62. Kb5 {[%clk 0:00:20]} 1-0


[Site "https://www.chess.com"]

[Event "Titled Tuesday Blitz May 30 Early 2023"]
[White "Manukian, Artak"]
[Black "Vakhlamov, Igor L."]
[WhiteFideId "13301373"]
[BlackFideId "24126748"]
[WhiteElo "2130"]
[BlackElo "2407"]
[Result "0-1"]
[Round "01"]
[TimeControl "180+2"]
[Date "2023.05.30"]
[WhiteClock "0:00:24"]
[BlackClock "0:00:32"]

1. e4 {[%clk 0:02:33]}  c5 {[%clk 0:02:59]} 2. Nf3 {[%clk 0:02:32]}  e6 {[%clk 0:02:59]} 3. c3 {[%clk 0:02:32]}  d5 {[%clk 0:02:59]} 4. e5 {[%clk 0:02:32]}  Nc6 {[%clk 0:02:54]} 5. d4 {[%clk 0:02:33]}  Qa5 {[%clk 0:02:54]} 6. a3 {[%clk 0:02:24]}  Nxd4 {[%clk 0:02:51]} 7. Nxd4 {[%clk 0:02:22]}  cxd4 {[%clk 0:02:52]} 8. b4 {[%clk 0:02:21]}  Qb6 {[%clk 0:02:50]} 9. Qxd4 {[%clk 0:02:21]}  Qxd4 {[%clk 0:02:49]} 10. cxd4 {[%clk 0:02:22]}  Bd7 {[%clk 0:02:49]} 11. Nc3 {[%clk 0:02:21]}  Ne7 {[%clk 0:02:48]} 12. Bd3 {[%clk 0:02:12]}  Nc6 {[%clk 0:02:39]} 13. Be3 {[%clk 0:02:09]}  Rc8 {[%clk 0:02:39]} 14. Kd2 {[%clk 0:02:07]}  Be7 {[%clk 0:02:38]} 15. Rhc1 {[%clk 0:02:05]}  f6 {[%clk 0:02:38]} 16. f4 {[%clk 0:02:04]}  a6 {[%clk 0:02:10]} 17. Ne2 {[%clk 0:01:56]}  O-O {[%clk 0:02:06]} 18. Rc2 {[%clk 0:01:42]}  Na7 {[%clk 0:02:03]} 19. Rac1 {[%clk 0:01:40]}  f5 {[%clk 0:02:01]} 20. Rxc8 {[%clk 0:01:39]}  Rxc8 {[%clk 0:02:02]} 21. Rxc8+ {[%clk 0:01:38]}  Nxc8 {[%clk 0:02:01]} 22. Nc3 {[%clk 0:01:35]}  b5 {[%clk 0:01:57]} 23. Na2 {[%clk 0:01:31]}  Nb6 {[%clk 0:01:57]} 24. Nc1 {[%clk 0:01:28]}  Nc4+ {[%clk 0:01:57]} 25. Bxc4 {[%clk 0:01:26]}  dxc4 {[%clk 0:01:58]} 26. Ne2 {[%clk 0:01:20]}  Bc6 {[%clk 0:01:57]} 27. g3 {[%clk 0:01:19]}  Kf7 {[%clk 0:01:57]} 28. Kc2 {[%clk 0:01:16]}  Kg6 {[%clk 0:01:49]} 29. Bd2 {[%clk 0:01:13]}  Kh5 {[%clk 0:01:48]} 30. h3 {[%clk 0:01:11]}  Bg2 {[%clk 0:01:49]} 31. Ng1 {[%clk 0:01:12]}  h6 {[%clk 0:01:47]} 32. Kd1 {[%clk 0:01:11]}  g5 {[%clk 0:01:43]} 33. Ke2 {[%clk 0:01:10]}  Kg6 {[%clk 0:01:36]} 34. Kf2 {[%clk 0:01:08]}  Bb7 {[%clk 0:01:35]} 35. Nf3 {[%clk 0:01:05]}  g4 {[%clk 0:01:33]} 36. hxg4 {[%clk 0:01:01]}  fxg4 {[%clk 0:01:33]} 37. Ne1 {[%clk 0:00:46]}  h5 {[%clk 0:01:27]} 38. Ng2 {[%clk 0:00:46]}  Bxg2 {[%clk 0:01:24]} 39. Kxg2 {[%clk 0:00:45]}  Kf5 {[%clk 0:01:25]} 40. Kf2 {[%clk 0:00:43]}  Ke4 {[%clk 0:01:25]} 41. Bc3 {[%clk 0:00:40]}  h4 {[%clk 0:01:00]} 42. Kg2 {[%clk 0:00:34]}  h3+ {[%clk 0:00:46]} 43. Kf2 {[%clk 0:00:24]}  Bd8 {[%clk 0:00:32]} 0-1


[Site "https://www.chess.com"]

[Event "Titled Tuesday Blitz May 30 Early 2023"]
[White "Dimitrov, Atanas"]
[Black "Gil Alba, Hector Luis"]
[WhiteFideId "2901315"]
[BlackFideId "3504670"]
[WhiteElo "2718"]
[BlackElo "2331"]
[Result "1/2-1/2"]
[Round "01"]
[TimeControl "180+2"]
[Date "2023.05.30"]
[WhiteClock "0:00:25"]
[BlackClock "0:00:46"]

1. Nf3 {[%clk 0:03:00]}  Nf6 {[%clk 0:02:58]} 2. c4 {[%clk 0:03:01]}  e6 {[%clk 0:02:58]} 3. Nc3 {[%clk 0:03:01]}  d5 {[%clk 0:02:58]} 4. e3 {[%clk 0:03:01]}  a6 {[%clk 0:02:48]} 5. b3 {[%clk 0:03:01]}  c5 {[%clk 0:02:47]} 6. cxd5 {[%clk 0:03:01]}  Nxd5 {[%clk 0:02:46]} 7. Bb2 {[%clk 0:03:00]}  Nc6 {[%clk 0:02:45]} 8. Nxd5 {[%clk 0:02:59]}  exd5 {[%clk 0:02:25]} 9. Be2 {[%clk 0:02:59]}  d4 {[%clk 0:02:16]} 10. Bd3 {[%clk 0:02:25]}  Be7 {[%clk 0:02:14]} 11. O-O {[%clk 0:02:24]}  O-O {[%clk 0:02:14]} 12. exd4 {[%clk 0:02:23]}  Bg4 {[%clk 0:02:07]} 13. Be4 {[%clk 0:02:06]}  Nxd4 {[%clk 0:02:04]} 14. Bxd4 {[%clk 0:01:52]}  cxd4 {[%clk 0:02:04]} 15. h3 {[%clk 0:01:51]}  Bh5 {[%clk 0:02:01]} 16. Qe2 {[%clk 0:01:40]}  Rb8 {[%clk 0:01:58]} 17. Rfe1 {[%clk 0:01:38]}  Bf6 {[%clk 0:01:56]} 18. Rac1 {[%clk 0:01:36]}  Re8 {[%clk 0:01:54]} 19. Qd3 {[%clk 0:01:36]}  Bg6 {[%clk 0:01:50]} 20. Bxg6 {[%clk 0:01:27]}  hxg6 {[%clk 0:01:49]} 21. Re4 {[%clk 0:01:06]}  Rxe4 {[%clk 0:01:46]} 22. Qxe4 {[%clk 0:01:07]}  Qd6 {[%clk 0:01:46]} 23. d3 {[%clk 0:01:03]}  Qd7 {[%clk 0:01:39]} 24. Qf4 {[%clk 0:01:02]}  Re8 {[%clk 0:01:33]} 25. Rc7 {[%clk 0:00:58]}  Qd5 {[%clk 0:01:32]} 26. Qd2 {[%clk 0:00:48]}  b5 {[%clk 0:01:16]} 27. b4 {[%clk 0:00:45]}  g5 {[%clk 0:01:09]} 28. Rc5 {[%clk 0:00:44]}  Qe6 {[%clk 0:01:04]} 29. Nxg5 {[%clk 0:00:36]}  Qe1+ {[%clk 0:00:59]} 30. Qxe1 {[%clk 0:00:35]}  Rxe1+ {[%clk 0:00:59]} 31. Kh2 {[%clk 0:00:36]}  Bxg5 {[%clk 0:00:59]} 32. Rxg5 {[%clk 0:00:36]}  Re2 {[%clk 0:00:56]} 33. Kg3 {[%clk 0:00:32]}  Rd2 {[%clk 0:00:53]} 34. Rd5 {[%clk 0:00:31]}  Rxd3+ {[%clk 0:00:53]} 35. f3 {[%clk 0:00:31]}  Ra3 {[%clk 0:00:53]} 36. Rxd4 {[%clk 0:00:31]}  Rxa2 {[%clk 0:00:54]} 37. h4 {[%clk 0:00:31]}  Ra4 {[%clk 0:00:53]} 38. Rd6 {[%clk 0:00:30]}  Rxb4 {[%clk 0:00:52]} 39. Rxa6 {[%clk 0:00:30]}  g6 {[%clk 0:00:52]} 40. Rb6 {[%clk 0:00:30]}  Kg7 {[%clk 0:00:52]} 41. Kh3 {[%clk 0:00:31]}  Rb1 {[%clk 0:00:52]} 42. g4 {[%clk 0:00:31]}  b4 {[%clk 0:00:52]} 43. Kg2 {[%clk 0:00:30]}  b3 {[%clk 0:00:52]} 44. h5 {[%clk 0:00:30]}  gxh5 {[%clk 0:00:52]} 45. gxh5 {[%clk 0:00:31]}  f6 {[%clk 0:00:46]} 46. Rb5 {[%clk 0:00:25]} 1/2-1/2


[Site "https://www.chess.com"]

[Event "Titled Tuesday Blitz May 30 Early 2023"]
[White "Aradhya, Garg"]
[Black "Hajiyev, Kanan"]
[WhiteFideId "25006746"]
[BlackFideId "13404148"]
[WhiteElo "2263"]
[BlackElo "2103"]
[Result "1-0"]
[Round "01"]
[TimeControl "180+2"]
[Date "2023.05.30"]
[WhiteClock "0:00:18"]
[BlackClock "0:00:06"]

1. d4 {[%clk 0:03:00]}  Nf6 {[%clk 0:02:55]} 2. c4 {[%clk 0:03:01]}  e6 {[%clk 0:02:55]} 3. a3 {[%clk 0:03:01]}  d5 {[%clk 0:02:49]} 4. cxd5 {[%clk 0:03:01]}  exd5 {[%clk 0:02:46]} 5. Nc3 {[%clk 0:03:02]}  c6 {[%clk 0:02:43]} 6. Bf4 {[%clk 0:03:01]}  Bd6 {[%clk 0:02:39]} 7. Bxd6 {[%clk 0:03:01]}  Qxd6 {[%clk 0:02:40]} 8. Qc2 {[%clk 0:03:01]}  O-O {[%clk 0:02:40]} 9. e3 {[%clk 0:03:01]}  Bg4 {[%clk 0:02:39]} 10. Bd3 {[%clk 0:03:01]}  a5 {[%clk 0:02:38]} 11. h3 {[%clk 0:02:52]}  Bh5 {[%clk 0:02:37]} 12. Nge2 {[%clk 0:02:52]}  Bg6 {[%clk 0:02:31]} 13. Nf4 {[%clk 0:02:51]}  Bxd3 {[%clk 0:02:27]} 14. Nxd3 {[%clk 0:02:52]}  Nbd7 {[%clk 0:02:26]} 15. O-O {[%clk 0:02:52]}  Rfe8 {[%clk 0:02:25]} 16. b4 {[%clk 0:02:52]}  b5 {[%clk 0:02:19]} 17. Nc5 {[%clk 0:02:48]}  axb4 {[%clk 0:02:00]} 18. axb4 {[%clk 0:02:49]}  Nb6 {[%clk 0:02:00]} 19. Ne2 {[%clk 0:02:15]}  Nc4 {[%clk 0:01:56]} 20. Nf4 {[%clk 0:02:14]}  g6 {[%clk 0:01:40]} 21. Nfd3 {[%clk 0:02:13]}  Kg7 {[%clk 0:01:38]} 22. Ra2 {[%clk 0:02:03]}  Rxa2 {[%clk 0:01:18]} 23. Qxa2 {[%clk 0:02:04]}  Ne4 {[%clk 0:01:18]} 24. Qa7 {[%clk 0:01:53]}  Re7 {[%clk 0:01:13]} 25. Qa8 {[%clk 0:01:51]}  Qf6 {[%clk 0:00:30]} 26. Ne5 {[%clk 0:01:25]}  Ncd2 {[%clk 0:00:05]} 27. Nxe4 {[%clk 0:00:58]}  Nxe4 {[%clk 0:00:04]} 28. Qxc6 {[%clk 0:00:57]}  Re6 {[%clk 0:00:03]} 29. Qxd5 {[%clk 0:00:56]}  Nc3 {[%clk 0:00:03]} 30. Qf3 {[%clk 0:00:54]}  Qe7 {[%clk 0:00:03]} 31. e4 {[%clk 0:00:44]}  f6 {[%clk 0:00:04]} 32. Qxc3 {[%clk 0:00:41]}  fxe5 {[%clk 0:00:04]} 33. d5 {[%clk 0:00:42]}  Rd6 {[%clk 0:00:04]} 34. f4 {[%clk 0:00:41]}  Kh6 {[%clk 0:00:04]} 35. fxe5 {[%clk 0:00:40]}  Ra6 {[%clk 0:00:05]} 36. e6 {[%clk 0:00:34]}  Ra4 {[%clk 0:00:05]} 37. Qe3+ {[%clk 0:00:33]}  Kh5 {[%clk 0:00:03]} 38. Qf3+ {[%clk 0:00:17]}  Kh6 {[%clk 0:00:03]} 39. Qf4+ {[%clk 0:00:17]}  Kg7 {[%clk 0:00:03]} 40. Qf7+ {[%clk 0:00:17]}  Qxf7 {[%clk 0:00:04]} 41. Rxf7+ {[%clk 0:00:17]}  Kg8 {[%clk 0:00:04]} 42. Rb7 {[%clk 0:00:17]}  Rxb4 {[%clk 0:00:05]} 43. Rb8+ {[%clk 0:00:18]}  Kg7 {[%clk 0:00:05]} 44. e7 {[%clk 0:00:18]}  Rxe4 {[%clk 0:00:06]} 45. e8=Q {[%clk 0:00:18]}  Rxe8 {[%clk 0:00:06]} 46. Rxe8 {[%clk 0:00:18]} 1-0


[Site "https://www.chess.com"]

[Event "Titled Tuesday Blitz May 30 Early 2023"]
[White "Matveeva, Olga"]
[Black "Di Benedetto, Edoardo"]
[WhiteFideId "24107018"]
[BlackFideId "875740"]
[WhiteElo "2009"]
[BlackElo "2296"]
[Result "0-1"]
[Round "01"]
[TimeControl "180+2"]
[Date "2023.05.30"]
[WhiteClock "0:00:08"]
[BlackClock "0:01:31"]

1. d4 {[%clk 0:02:59]}  d5 {[%clk 0:02:59]} 2. c4 {[%clk 0:02:59]}  e6 {[%clk 0:02:59]} 3. Nf3 {[%clk 0:03:00]}  Nf6 {[%clk 0:02:59]} 4. g3 {[%clk 0:03:01]}  dxc4 {[%clk 0:02:59]} 5. Bg2 {[%clk 0:03:00]}  a6 {[%clk 0:02:58]} 6. O-O {[%clk 0:02:53]}  Nc6 {[%clk 0:02:57]} 7. e3 {[%clk 0:02:36]}  Rb8 {[%clk 0:02:55]} 8. Nfd2 {[%clk 0:02:25]}  e5 {[%clk 0:02:54]} 9. Bxc6+ {[%clk 0:02:17]}  bxc6 {[%clk 0:02:54]} 10. Nxc4 {[%clk 0:02:16]}  exd4 {[%clk 0:02:52]} 11. exd4 {[%clk 0:02:13]}  Be7 {[%clk 0:02:48]} 12. Nc3 {[%clk 0:02:08]}  O-O {[%clk 0:02:46]} 13. Bf4 {[%clk 0:02:06]}  Nd5 {[%clk 0:02:39]} 14. Qf3 {[%clk 0:01:49]}  Nxf4 {[%clk 0:02:15]} 15. Qxf4 {[%clk 0:01:50]}  Be6 {[%clk 0:02:15]} 16. Ne5 {[%clk 0:01:46]}  Bd6 {[%clk 0:02:08]} 17. Ne4 {[%clk 0:01:22]}  Rxb2 {[%clk 0:01:51]} 18. Rac1 {[%clk 0:01:13]}  Bxe5 {[%clk 0:01:47]} 19. dxe5 {[%clk 0:01:10]}  Rxa2 {[%clk 0:01:44]} 20. Rc5 {[%clk 0:00:53]}  Kh8 {[%clk 0:01:38]} 21. Rfc1 {[%clk 0:00:29]}  Ra4 {[%clk 0:01:35]} 22. Qe3 {[%clk 0:00:24]}  Bd5 {[%clk 0:01:33]} 23. Ng5 {[%clk 0:00:23]}  h6 {[%clk 0:01:33]} 24. e6 {[%clk 0:00:08]}  Qxg5 {[%clk 0:01:31]} 0-1


[Site "https://www.chess.com"]

[Event "Titled Tuesday Blitz May 30 Early 2023"]
[White "Ioannidis, Evgenios"]
[Black "Estrada Nieto, Julian"]
[WhiteFideId "4229274"]
[BlackFideId "5101018"]
[WhiteElo "2386"]
[BlackElo "2161"]
[Result "1-0"]
[Round "01"]
[TimeControl "180+2"]
[Date "2023.05.30"]
[WhiteClock "0:01:32"]
[BlackClock "0:00:04"]

1. d4 {[%clk 0:02:54]}  d5 {[%clk 0:02:59]} 2. c4 {[%clk 0:02:54]}  dxc4 {[%clk 0:02:58]} 3. e3 {[%clk 0:02:53]}  Nf6 {[%clk 0:02:58]} 4. Bxc4 {[%clk 0:02:52]}  e6 {[%clk 0:02:59]} 5. Nf3 {[%clk 0:02:52]}  c5 {[%clk 0:03:00]} 6. O-O {[%clk 0:02:52]}  a6 {[%clk 0:03:00]} 7. Re1 {[%clk 0:02:53]}  Nc6 {[%clk 0:02:59]} 8. dxc5 {[%clk 0:02:52]}  Qxd1 {[%clk 0:02:47]} 9. Rxd1 {[%clk 0:02:52]}  Bxc5 {[%clk 0:02:48]} 10. Nbd2 {[%clk 0:02:52]}  Ke7 {[%clk 0:02:47]} 11. Nb3 {[%clk 0:02:47]}  Bd6 {[%clk 0:02:41]} 12. Bd2 {[%clk 0:02:47]}  Bd7 {[%clk 0:02:40]} 13. Nfd4 {[%clk 0:02:23]}  Ne4 {[%clk 0:02:33]} 14. Be1 {[%clk 0:02:18]}  Nxd4 {[%clk 0:02:24]} 15. Rxd4 {[%clk 0:02:18]}  f5 {[%clk 0:01:55]} 16. Rad1 {[%clk 0:02:13]}  e5 {[%clk 0:00:59]} 17. Rxd6 {[%clk 0:02:12]}  Nxd6 {[%clk 0:00:58]} 18. Bb4 {[%clk 0:02:13]}  Rac8 {[%clk 0:00:49]} 19. Bxd6+ {[%clk 0:02:06]}  Kf6 {[%clk 0:00:49]} 20. Nc5 {[%clk 0:02:04]}  Bb5 {[%clk 0:00:41]} 21. Bxb5 {[%clk 0:01:59]}  axb5 {[%clk 0:00:40]} 22. f4 {[%clk 0:01:54]}  exf4 {[%clk 0:00:37]} 23. exf4 {[%clk 0:01:55]}  b6 {[%clk 0:00:29]} 24. Be5+ {[%clk 0:01:49]}  Ke7 {[%clk 0:00:22]} 25. Nb7 {[%clk 0:01:43]}  Rc2 {[%clk 0:00:19]} 26. Nd6 {[%clk 0:01:42]}  Rf8 {[%clk 0:00:16]} 27. Nxb5 {[%clk 0:01:39]}  g6 {[%clk 0:00:12]} 28. Nd4 {[%clk 0:01:38]}  Rc4 {[%clk 0:00:08]} 29. b3 {[%clk 0:01:38]}  Rcc8 {[%clk 0:00:07]} 30. Nb5 {[%clk 0:01:33]}  Ke6 {[%clk 0:00:05]} 31. Rd6+ {[%clk 0:01:32]}  Ke7 {[%clk 0:00:06]} 32. Rxb6 {[%clk 0:01:32]}  Rc2 {[%clk 0:00:06]} 33. Bd6+ {[%clk 0:01:32]}  Kf7 {[%clk 0:00:06]} 34. Rb7+ {[%clk 0:01:31]}  Kg8 {[%clk 0:00:06]} 35. Bxf8 {[%clk 0:01:31]}  Kxf8 {[%clk 0:00:04]} 36. a4 {[%clk 0:01:32]} 1-0


[Site "https://www.chess.com"]